bitfinex/quotes_SOLUSD_20240717
["timestamp","ask_amount","ask_price","bid_price","bid_amount"]
[1721223184750,6.2288,160.55,160.5,6.2305]
[1721223185077,39.8179,160.57,160.52,6.2297]
[1721223185279,6.2272,160.59,160.54,6.2288]
[1721223185579,6.2272,160.59,160.52,1.24561316]
[1721223185580,15.5647,160.62,160.51,10.0]
[1721223185774,15.5647,160.62,160.52,45.0]
[1721223185983,6.228,160.57,160.52,51.2296]
[1721223186190,6.2266,160.6,160.55,6.2284]
[1721223186487,56.1368,160.64,160.56,1.24546941]
[1721223186488,6.227,160.59,160.56,1.24546941]
[1721223186692,56.1368,160.64,160.56,1.24546941]
[1721223186985,6.2262,160.61,160.56,7.47356941]
[1721223187288,39.9321,160.64,160.57,6.2276]
[1721223187289,6.2261,160.62,160.57,6.2276]
[1721223187464,6.2261,160.62,160.58,1.24527406]
[1721223187670,6.2255,160.63,160.58,51.2272]
[1721223187872,71.6957,160.68,160.59,7.47179536]
[1721223188060,71.6957,160.68,160.6,45.0]
[1721223188261,47.64457119,160.71,160.67,6.2238]
[1721223188262,8.05257603,160.71,160.67,6.2238]
[1721223188500,0.838148,160.71,160.61,1.24509788]
[1721223188786,6.2231,160.69,160.63,6.2254]
[1721223189099,0.838148,160.71,160.61,45.0]
[1721223189100,16.394448,160.71,160.61,45.0]
[1721223189264,6.2246,160.66,160.6,51.2264]
[1721223189666,6.2252,160.64,160.6,45.0]
[1721223189876,6.2252,160.64,160.57,10.0]
[1721223190087,16.394448,160.71,160.55,6.2282]
[1721223190088,6.2262,160.61,160.55,6.2282]
[1721223190257,6.2258,160.63,160.57,6.2277]
[1721223190465,33.59,160.65,160.55,6.2282]
[1721223190466,6.2264,160.61,160.55,6.2282]
[1721223190687,33.59,160.65,160.56,6.228]
[1721223190860,6.2259,160.62,160.56,6.228]
[1721223191062,6.2253,160.64,160.58,6.2272]
[1721223191289,33.59,160.65,160.54,16.2249]
[1721223191508,6.2266,160.6,160.54,22.4538]
[1721223191801,33.59,160.61,160.5,16.2249]
[1721223192026,33.59,160.61,160.43,11.98821777]
[1721223192027,15.5677,160.59,160.46,17.30944073]
[1721223192307,6.2278,160.57,160.51,6.2301]
[1721223192614,6.2282,160.56,160.52,1.24565176]
[1721223192801,6.2289,160.54,160.47,30.0]
[1721223193001,15.5672,160.6,160.46,27.30944073]
[1721223193002,6.2293,160.53,160.46,17.30944073]
[1721223193215,6.2289,160.55,160.48,6.2312]
[1721223193512,33.59,160.57,160.49,1.2458381]
[1721223193684,33.59,160.57,160.46,17.30944073]
[1721223194286,6.2282,160.56,160.47,1.24598952]
[1721223194605,8.47919516,160.63,160.53,6.2293]
[1721223194926,6.2266,160.61,160.55,6.2284]
[1721223195111,6.2267,160.6,160.54,6.2289]
[1721223195413,6.2267,160.6,160.49,10.0]
[1721223195414,71.7002,160.64,160.56,6.2281]
[1721223195616,39.9321,160.64,160.57,45.0]
[1721223195786,6.2255,160.63,160.57,51.2276]
[1721223195987,6.2259,160.62,160.57,45.0]
[1721223196187,39.9321,160.64,160.53,10.0]
[1721223196387,39.9321,160.64,160.56,6.228]
[1721223196588,39.9321,160.64,160.53,10.0]
[1721223196589,39.9321,160.64,160.59,6.2268]
[1721223196808,39.8136,160.68,160.6,1.24512087]
[1721223196989,6.2242,160.67,160.61,1.24497968]
[1721223197391,6.2242,160.67,160.57,73.74]
[1721223197594,39.8136,160.68,160.62,6.2258]
[1721223197808,6.2236,160.68,160.63,7.47019538]
[1721223198005,6.2239,160.67,160.61,6.2259]
[1721223198222,6.2236,160.68,160.62,51.2257]
[1721223198405,6.2236,160.68,160.63,7.47027395]
[1721223198815,0.838148,160.71,160.62,51.2258]
[1721223198816,6.224,160.67,160.62,51.2258]
[1721223199119,0.838148,160.71,160.64,1.24488064]
[1721223199437,7.060848,160.71,160.65,6.2244]
[1721223199633,7.060848,160.71,160.66,45.0]
[1721223200122,0.838148,160.71,160.67,1.24468895]
[1721223200321,0.838148,160.71,160.62,30.0]
[1721223200623,0.838148,160.71,160.63,45.0]
[1721223201019,6.2237,160.68,160.64,1.24484002]
[1721223201215,6.2237,160.68,160.63,45.0]
[1721223201216,0.838148,160.71,160.63,45.0]
[1721223201423,6.2233,160.69,160.63,6.2254]
[1721223201605,0.838148,160.71,160.62,45.0]
[1721223202004,6.2243,160.66,160.6,6.2262]
[1721223202320,0.838148,160.71,160.64,6.2247]
[1721223202526,6.2232,160.69,160.64,6.2247]
[1721223202727,0.838148,160.71,160.61,45.0]
[1721223202728,7.060848,160.71,160.61,45.0]
[1721223202913,7.060848,160.71,160.65,6.2245]
[1721223203244,6.2229,160.7,160.66,45.0]
[1721223203424,7.060548,160.71,160.66,45.0]
[1721223203610,0.838148,160.71,160.66,45.0]
[1721223203921,0.838148,160.71,160.68,6.2233]
[1721223204129,0.838148,160.71,160.69,7.46752271]
[1721223204509,0.838148,160.71,160.7,6.2227]
[1721223205023,0.838148,160.71,160.69,6.223]
[1721223205246,0.838148,160.71,160.66,45.0]
[1721223205826,0.838148,160.71,160.69,6.223]
[1721223206010,0.838148,160.71,160.7,6.2227]
[1721223206211,0.838148,160.71,160.7,51.2227]
[1721223206420,0.838148,160.71,160.65,10.0]
[1721223206622,0.838148,160.71,160.67,6.2238]
[1721223206936,0.838148,160.71,160.69,6.223]
[1721223207104,0.838148,160.71,160.7,45.0]
[1721223207532,0.838148,160.71,160.69,6.223]
[1721223207705,0.838148,160.71,160.67,6.2239]
[1721223208028,0.838148,160.71,160.68,45.0]
[1721223208247,0.838148,160.71,160.68,51.2234]
[1721223208402,0.838148,160.71,160.69,7.46704897]
[1721223208599,0.838148,160.71,160.7,45.0]
[1721223209028,0.838148,160.71,160.69,51.2231]
[1721223209234,0.838148,160.71,160.69,45.0]
[1721223209733,0.838148,160.71,160.69,6.223]
[1721223210326,0.838148,160.71,160.6,18.74]
[1721223210537,0.838148,160.71,160.62,40.0]
[1721223210538,6.2231,160.7,160.62,40.0]
[1721223210731,7.060548,160.71,160.65,6.2244]
[1721223210912,0.838148,160.71,160.62,30.0]
[1721223211101,6.2238,160.68,160.62,36.2257]
[1721223211299,0.838148,160.71,160.65,6.2244]
[1721223211520,7.060848,160.71,160.66,7.46862421]
[1721223211717,7.060848,160.71,160.62,40.0]
[1721223211933,0.838148,160.71,160.63,6.2254]
[1721223212446,0.838148,160.71,160.62,36.2258]
[1721223212735,0.838148,160.71,160.63,6.2254]
[1721223213412,0.838148,160.71,160.64,6.225]
[1721223213630,0.838148,160.71,160.6,10.0]
[1721223213631,0.838148,160.71,160.66,6.2243]
[1721223213830,0.838148,160.71,160.67,7.46852442]
[1721223214034,0.838148,160.71,160.68,1.24458306]
[1721223214328,0.838148,160.71,160.68,46.24458306]
[1721223214541,0.838148,160.71,160.69,1.24452529]
[1721223214743,0.838148,160.71,160.69,45.0]
[1721223214921,0.838148,160.71,160.69,51.223]
[1721223215113,0.838148,160.71,160.69,45.0]
[1721223215320,0.838148,160.71,160.68,45.0]
[1721223215715,0.838148,160.71,160.67,45.0]
[1721223216116,0.838148,160.71,160.42,31.11363183]
[1721223216117,0.838148,160.71,160.66,6.2241]
[1721223216318,0.838148,160.71,160.67,7.46839493]
[1721223216541,0.838148,160.71,160.68,6.2234]
[1721223217146,0.838148,160.71,160.69,1.24434594]
[1721223217355,0.838148,160.71,160.69,45.0]
[1721223217522,0.838148,160.71,160.7,1.24439887]
[1721223217851,0.838148,160.71,160.69,45.0]
[1721223218215,0.838148,160.71,160.68,45.0]
[1721223218737,0.838148,160.71,160.68,51.2235]
[1721223219047,0.838148,160.71,160.68,45.0]
[1721223219272,0.838148,160.71,160.62,30.0]
[1721223219748,6.2231,160.69,160.65,6.2246]
[1721223219934,0.838148,160.71,160.62,30.0]
[1721223220120,7.060848,160.71,160.66,6.2239]
[1721223220318,0.838148,160.71,160.67,1.24460135]
[1721223220647,0.838148,160.71,160.68,7.4678848]
[1721223220845,0.838148,160.71,160.69,6.2231]
[1721223221151,0.838148,160.71,160.68,1.2443848]
[1721223221318,6.2228,160.7,160.65,6.2246]
[1721223221718,6.2228,160.7,160.62,40.0]
[1721223221719,0.838148,160.71,160.66,1.24465132]
[1721223221937,0.838148,160.71,160.64,10.0]
[1721223222122,0.838148,160.71,160.65,75.0]
[1721223222429,0.838148,160.71,160.66,1.24450452]
[1721223222752,0.838148,160.71,160.68,6.2231]
[1721223222957,0.838148,160.71,160.69,1.24449566]
[1721223223116,0.838148,160.71,160.69,52.46759566]
[1721223223420,0.838148,160.71,160.7,1.24439076]
[1721223223622,0.838148,160.71,160.68,6.2234]
[1721223223838,0.838148,160.71,160.69,45.0]
[1721223224419,0.838148,160.71,160.69,52.46739222]
[1721223224648,0.838148,160.71,160.69,51.223]
[1721223225158,0.838148,160.71,160.69,45.0]
[1721223225323,0.838148,160.71,160.65,30.0]
[1721223225523,0.838148,160.71,160.66,1.24439272]
[1721223225839,0.838148,160.71,160.69,6.2228]
[1721223226023,0.838148,160.71,160.7,1.24439304]
[1721223226424,0.838148,160.71,160.7,7.46709304]
[1721223226618,0.838148,160.71,160.7,52.46709304]
[1721223227135,0.838148,160.71,160.7,51.2227]
[1721223227728,0.838148,160.71,160.7,45.0]
[1721223227926,0.838148,160.71,160.69,6.2231]
[1721223228126,0.838148,160.71,160.68,6.2234]
[1721223228327,0.838148,160.71,160.69,46.24441587]
[1721223228540,0.838148,160.71,160.69,52.46741587]
[1721223228749,0.838148,160.71,160.69,45.0]
[1721223228942,0.838148,160.71,160.69,52.46748906]
[1721223229129,0.838148,160.71,160.7,6.2227]
[1721223229332,0.838148,160.71,160.69,45.0]
[1721223230137,0.838148,160.71,160.67,6.2238]
[1721223230343,0.838148,160.71,160.68,45.0]
[1721223230667,0.838148,160.71,160.69,7.46748663]
[1721223231138,0.838148,160.71,160.68,51.2234]
[1721223231472,0.838148,160.71,160.69,6.2231]
[1721223231648,0.838148,160.71,160.7,6.2227]
[1721223231975,0.838148,160.71,160.69,7.46739195]
[1721223232161,0.838148,160.71,160.7,51.2227]
[1721223232363,0.838148,160.71,160.66,10.0]
[1721223232546,0.838148,160.71,160.69,6.223]
[1721223232757,0.838148,160.71,160.7,45.0]
[1721223233056,0.838148,160.71,160.7,52.46703293]
[1721223233277,0.838148,160.71,160.7,46.24433293]
[1721223233473,0.838148,160.71,160.7,46.2443328]
[1721223233640,0.838148,160.71,160.7,52.4670328]
[1721223234042,0.838148,160.71,160.7,51.2227]
[1721223234839,0.838148,160.71,160.7,52.46692203]
[1721223235040,0.838148,160.71,160.7,82.46692203]
[1721223235540,0.838148,160.71,160.7,81.2227]
[1721223237467,0.838148,160.71,160.7,75.0]
[1721223237759,0.838148,160.71,160.67,6.2239]
[1721223238288,7.060548,160.71,160.67,6.2238]
[1721223238578,7.060548,160.71,160.66,6.2242]
[1721223238742,7.060548,160.71,160.67,30.0]
[1721223238942,7.060548,160.71,160.68,45.0]
[1721223238943,0.838148,160.71,160.68,45.0]
[1721223239151,0.838148,160.71,160.68,51.2234]
[1721223240047,0.838148,160.71,160.68,45.0]
[1721223240246,7.060548,160.71,160.68,45.0]
[1721223240463,6.2231,160.7,160.61,26.4119]
[1721223240649,6.2231,160.7,160.63,30.0]
[1721223241069,6.2231,160.7,160.65,6.2246]
[1721223241262,6.2231,160.69,160.65,6.2246]
[1721223241466,6.2231,160.69,160.59,1.08432741]
[1721223241467,6.2239,160.67,160.59,1.08432741]
[1721223241641,12.4919,160.68,160.63,6.2254]
[1721223241842,6.2241,160.67,160.62,6.2258]
[1721223242038,6.2683,160.68,160.61,30.0]
[1721223242279,0.838148,160.71,160.64,10.0]
[1721223242581,0.838148,160.71,160.7,6.2227]
[1721223243065,0.838148,160.71,160.68,6.2234]
[1721223243370,0.838148,160.71,160.67,6.2238]
[1721223244051,0.838148,160.71,160.68,1.24454926]
[1721223244259,0.838148,160.71,160.67,6.2238]
[1721223244774,0.838148,160.71,160.69,6.2228]
[1721223244987,0.838148,160.71,160.68,45.0]
[1721223245153,0.838148,160.71,160.67,6.2236]
[1721223245548,0.838148,160.71,160.68,1.24455366]
[1721223245744,0.838148,160.71,160.68,45.0]
[1721223245986,0.838148,160.71,160.7,6.2227]
[1721223246469,0.838148,160.71,160.69,6.223]
[1721223246665,0.838148,160.71,160.7,52.46705622]
[1721223246842,0.838148,160.71,160.7,7.46705622]
[1721223247046,0.838148,160.71,160.7,52.46705622]
[1721223247670,0.838148,160.71,160.7,51.2227]
[1721223248371,0.838148,160.71,160.7,45.0]
[1721223248672,0.838148,160.71,160.7,51.2227]
[1721223248976,0.838148,160.71,160.7,81.2227]
[1721223249650,0.838148,160.71,160.7,51.2227]
[1721223250572,0.838148,160.71,160.7,82.4667647]
[1721223251079,0.838148,160.71,160.7,81.2227]
[1721223252582,0.838148,160.71,160.7,36.2227]
[1721223252958,0.838148,160.71,160.7,37.46680488]
[1721223253358,0.838148,160.71,160.7,54.9627]
[1721223254086,0.838148,160.71,160.7,99.9627]
[1721223254386,0.838148,160.71,160.7,81.2227]
[1721223254884,0.838148,160.71,160.7,82.46672026]
[1721223255265,0.838148,160.71,160.7,99.9627]
[1721223258463,0.838148,160.71,160.7,81.2227]
[1721223260386,0.838148,160.71,160.7,36.2227]
[1721223260694,0.838148,160.71,160.7,46.2227]
[1721223261490,0.838148,160.71,160.7,64.9627]
[1721223261859,0.838148,160.71,160.7,109.9627]
[1721223264060,6.2683,160.8,160.73,10.0]
[1721223264257,6.2683,160.8,160.77,6.2199]
[1721223264461,6.2683,160.8,160.78,1.24375162]
[1721223264893,6.2683,160.8,160.79,6.2192]
[1721223265056,36.0073,160.84,160.78,1.24375162]
[1721223265057,6.1901,160.84,160.78,1.24375162]
[1721223265264,6.1901,160.84,160.74,10.0]
[1721223265563,6.1901,160.84,160.8,6.2187]
[1721223265784,6.1901,160.84,160.81,45.0]
[1721223265988,6.1901,160.84,160.81,51.2182]
[1721223266570,7.29628477,160.87,160.81,51.2182]
[1721223266865,7.29628477,160.87,160.82,6.2179]
[1721223267071,6.2165,160.87,160.82,6.2179]
[1721223267276,1.91793277,160.88,160.83,6.2176]
[1721223267602,1.91793277,160.88,160.83,7.4609727]
[1721223267603,7.054048,160.88,160.83,7.4609727]
[1721223267890,7.054048,160.88,160.83,6.2176]
[1721223268467,0.838148,160.88,160.83,6.2176]
[1721223268677,0.838148,160.88,160.81,45.0]
[1721223268678,0.838148,160.88,160.86,6.2165]
[1721223268885,0.838148,160.88,160.86,1.2430812]
[1721223269085,0.838148,160.88,160.87,6.2161]
[1721223269673,0.838148,160.88,160.87,51.2161]
[1721223270269,0.838148,160.88,160.86,30.0]
[1721223270465,0.838148,160.88,160.87,51.2161]
[1721223270692,0.838148,160.88,160.87,81.2161]
[1721223271277,0.838148,160.88,160.87,82.45891666]
[1721223271591,0.838148,160.88,160.87,91.2161]
[1721223272595,0.838148,160.88,160.87,81.2161]
[1721223273681,0.838148,160.88,160.87,82.45885234]
[1721223273874,0.838148,160.88,160.87,81.2161]
[1721223274074,0.838148,160.88,160.87,82.45877498]
[1721223274280,0.838148,160.88,160.87,99.9561]
[1721223274983,0.838148,160.88,160.87,111.19866651]
[1721223275188,0.838148,160.88,160.87,129.9561]
[1721223275474,0.838148,160.88,160.87,139.9561]
[1721223275670,0.838148,160.88,160.87,129.9561]
[1721223275873,0.838148,160.88,160.87,66.2161]
[1721223276106,0.838148,160.88,160.87,30.0]
[1721223276289,0.838148,160.88,160.86,1.24298415]
[1721223276493,0.838148,160.88,160.81,16.2182]
[1721223276684,1.91793277,160.88,160.81,16.2182]
[1721223276887,1.91793277,160.88,160.8,6.2188]
[1721223277200,6.2169,160.86,160.81,6.2183]
[1721223277386,1.07978477,160.85,160.77,2.35534102]
[1721223277576,6.218,160.83,160.78,6.2195]
[1721223277777,1.07978477,160.84,160.78,6.2195]
[1721223277993,1.07978477,160.84,160.76,10.0]
[1721223277994,29.79,160.85,160.8,6.2186]
[1721223278182,29.79,160.85,160.76,10.0]
[1721223278183,7.29618477,160.87,160.81,7.46188061]
[1721223278383,7.29618477,160.87,160.82,1.24347621]
[1721223278585,7.29618477,160.87,160.82,7.46157621]
[1721223278805,30.628148,160.88,160.83,6.2173]
[1721223278975,30.628148,160.88,160.82,6.218]
[1721223279174,31.70793277,160.88,160.8,10.0]
[1721223279409,30.628148,160.88,160.84,6.2173]
[1721223279906,0.838148,160.88,160.85,6.2168]
[1721223280280,0.838148,160.88,160.82,10.0]
[1721223280474,0.838148,160.88,160.87,6.2161]
[1721223280797,0.838148,160.88,160.87,51.2161]
[1721223281900,0.838148,160.88,160.87,45.0]
[1721223282095,0.838148,160.88,160.83,30.0]
[1721223282306,0.838148,160.88,160.84,7.45998716]
[1721223282612,0.838148,160.88,160.87,6.2161]
[1721223283108,0.838148,160.88,160.85,30.0]
[1721223283109,0.838148,160.88,160.85,36.2166]
[1721223283275,0.838148,160.88,160.86,6.2164]
[1721223283480,0.838148,160.88,160.86,1.24299352]
[1721223283797,0.838148,160.88,160.87,6.2161]
[1721223284507,0.838148,160.88,160.86,45.0]
[1721223284686,0.838148,160.88,160.85,30.0]
[1721223284996,6.2162,160.87,160.85,30.0]
[1721223285214,0.838148,160.88,160.85,30.0]
[1721223285215,30.628148,160.88,160.85,30.0]
[1721223285382,7.29618477,160.87,160.85,30.0]
[1721223285581,30.628148,160.88,160.85,30.0]
[1721223285886,1.07978477,160.87,160.8,6.2188]
[1721223286083,6.2166,160.86,160.81,36.2185]
[1721223286276,6.1901,160.84,160.81,30.0]
[1721223286479,6.1901,160.84,160.81,6.2181]
[1721223286775,6.1901,160.84,160.82,1.24348226]
[1721223286981,6.1901,160.84,160.83,6.2177]
[1721223287202,36.843948,160.88,160.8,10.0]
[1721223287203,36.818248,160.88,160.8,10.0]
[1721223287421,7.028248,160.88,160.81,30.0]
[1721223287592,7.028248,160.88,160.83,6.2175]
[1721223288103,1.07978477,160.87,160.81,30.0]
[1721223288612,6.2173,160.84,160.79,6.2189]
[1721223288915,6.2173,160.84,160.78,36.2195]
[1721223289114,1.07978477,160.83,160.78,36.2195]
[1721223289286,7.29758477,160.83,160.78,36.2195]
[1721223289484,6.2178,160.83,160.78,36.2195]
[1721223289687,1.07978477,160.84,160.79,6.2191]
[1721223289888,1.07978477,160.84,160.8,6.2188]
[1721223290212,29.79,160.85,160.81,1.24360711]
[1721223290407,29.79,160.85,160.78,40.0]
[1721223290711,6.2165,160.87,160.82,6.2178]
[1721223290881,43.034148,160.88,160.83,1.24339583]
[1721223291080,36.818248,160.88,160.84,7.46037782]
[1721223291312,36.818248,160.88,160.8,10.0]
[1721223291492,7.028248,160.88,160.84,6.217]
[1721223291692,7.028248,160.88,160.81,45.0]
[1721223291693,7.028248,160.88,160.85,6.2169]
[1721223291904,1.07978477,160.87,160.81,45.0]
[1721223292119,6.2166,160.86,160.81,6.2182]
[1721223292285,7.028248,160.88,160.82,1.24335323]
[1721223292487,7.028248,160.88,160.84,6.217]
[1721223292682,7.028248,160.88,160.85,1.24315667]
[1721223292998,7.028248,160.88,160.86,1.24314066]
[1721223293208,7.028248,160.88,160.83,10.0]
[1721223293383,7.028248,160.88,160.84,45.0]
[1721223293583,7.028248,160.88,160.81,40.0]
[1721223293584,7.028248,160.88,160.81,36.2181]
[1721223293896,13.244348,160.88,160.82,46.24326324]
[1721223294094,7.028248,160.88,160.84,6.2173]
[1721223294491,6.2169,160.86,160.83,30.0]
[1721223294714,6.2169,160.86,160.81,6.2184]
[1721223294882,36.0063,160.87,160.82,1.24339999]
[1721223295087,36.0063,160.87,160.83,1.24334578]
[1721223295287,6.2165,160.86,160.83,1.24334578]
[1721223295522,6.2165,160.86,160.81,6.2184]
[1721223295812,13.244348,160.88,160.83,6.2176]
[1721223296017,7.028248,160.88,160.84,6.2173]
[1721223296211,1.07978477,160.87,160.77,10.0]
[1721223296527,30.86978477,160.87,160.79,30.0]
[1721223296696,6.2178,160.83,160.79,30.0]
[1721223297020,6.2178,160.83,160.78,6.2195]
[1721223297021,30.86978477,160.87,160.78,6.2195]
[1721223297022,6.2174,160.84,160.78,6.2195]
[1721223297236,30.86978477,160.87,160.78,6.2195]
[1721223297237,1.07978477,160.86,160.78,6.2195]
[1721223297521,1.07978477,160.86,160.75,13.41706361]
[1721223297522,6.2174,160.84,160.79,6.2191]
[1721223298013,6.2174,160.84,160.76,30.0]
[1721223298014,7.29758477,160.83,160.77,6.2196]
[1721223298219,6.2178,160.83,160.77,6.2196]
[1721223298717,1.07978477,160.86,160.76,30.0]
[1721223298926,6.2174,160.84,160.76,30.0]
[1721223299124,7.29718477,160.84,160.77,1.24366049]
[1721223299293,1.07978477,160.84,160.79,6.2191]
[1721223300026,1.07978477,160.84,160.8,6.2187]
[1721223300325,1.07978477,160.84,160.78,6.2193]
[1721223300512,1.07978477,160.86,160.78,6.2193]
[1721223300718,1.07978477,160.86,160.8,6.2185]
[1721223300719,1.07978477,160.85,160.8,6.2185]
[1721223300901,7.29698477,160.85,160.79,6.2191]
[1721223301103,6.2174,160.84,160.79,6.2191]
[1721223301407,6.2174,160.84,160.76,1.24360203]
[1721223301408,6.2173,160.84,160.76,1.24360203]
[1721223301607,6.2173,160.84,160.77,31.24359164]
[1721223301814,6.2178,160.83,160.78,6.2195]
[1721223302219,6.2174,160.84,160.77,30.0]
[1721223302423,1.07978477,160.83,160.79,6.2192]
[1721223302926,6.217,160.85,160.8,7.46231544]
[1721223303115,7.29628477,160.86,160.81,6.2184]
[1721223303328,29.79,160.87,160.84,6.2173]
[1721223303626,6.1901,160.88,160.86,6.2164]
[1721223303829,1.07978477,160.93,160.86,11.24314698]
[1721223303830,6.5258,160.93,160.86,11.24314698]
[1721223304028,6.5258,160.93,160.89,6.2153]
[1721223304321,6.5258,160.93,160.87,45.0]
[1721223304528,6.5258,160.93,160.84,10.0]
[1721223304529,6.5258,160.93,160.88,7.45831704]
[1721223304733,6.5258,160.93,160.88,1.24291704]
[1721223304940,6.5258,160.93,160.88,46.24291704]
[1721223305232,6.5258,160.93,160.88,51.2154]
[1721223305442,12.7396,160.93,160.88,45.0]
[1721223305663,6.5258,160.93,160.88,6.2157]
[1721223305939,6.5258,160.93,160.89,7.45811082]
[1721223306141,6.5258,160.93,160.85,10.0]
[1721223306430,12.7397,160.93,160.86,75.0]
[1721223306619,12.7397,160.93,160.87,1.2428436]
[1721223307347,12.7397,160.93,160.86,75.0]
[1721223307348,6.2149,160.91,160.86,75.0]
[1721223307509,6.5258,160.93,160.88,6.2156]
[1721223307723,12.7397,160.93,160.88,6.2157]
[1721223307922,6.79398477,160.92,160.86,6.2162]
[1721223308109,6.5258,160.93,160.89,10.0]
[1721223308415,30.36978477,160.97,160.9,45.0]
[1721223308416,7.10558477,160.97,160.9,45.0]
[1721223308917,6.5258,160.97,160.92,6.2142]
[1721223309118,6.5258,160.97,160.9,45.0]
[1721223309119,6.5258,160.97,160.93,6.2138]
[1721223309632,6.5258,160.97,160.9,45.0]
[1721223309633,0.57978477,160.96,160.92,6.2142]
[1721223309823,6.79248477,160.96,160.91,1.24268352]
[1721223310024,12.7381,160.97,160.93,1.24268352]
[1721223310226,12.7381,160.97,160.9,1.24255924]
[1721223310537,12.7363,161.02,160.94,10.0]
[1721223310721,6.79068477,161.01,160.96,6.2124]
[1721223310922,13.31598477,161.02,160.96,6.2124]
[1721223311230,13.31598477,161.02,160.94,10.0]
[1721223311424,13.31598477,161.02,160.96,6.2123]
[1721223311933,6.2107,161.01,160.97,1.24222934]
[1721223312106,6.5258,161.02,160.97,1.24222934]
[1721223312313,7.10558477,161.08,160.99,10.0]
[1721223312512,6.2085,161.07,161.01,6.2104]
[1721223312735,6.2085,161.07,160.99,10.0]
[1721223312736,13.31388477,161.08,161.02,1.24180483]
[1721223312919,7.10558477,161.08,161.03,6.2099]
[1721223313129,6.5258,161.08,161.04,6.2095]
[1721223313347,6.5258,161.08,161.06,6.2084]
[1721223313534,0.57978477,161.11,161.06,6.2084]
[1721223313838,0.57978477,161.11,161.02,10.0]
[1721223314016,0.57978477,161.11,161.03,45.0]
[1721223314216,0.57978477,161.1,161.0,10.0]
[1721223314453,0.57978477,161.1,161.01,75.0]
[1721223314618,0.57978477,161.1,161.02,7.45192206]
[1721223314810,0.57978477,161.1,161.01,75.0]
[1721223314811,0.57978477,161.1,161.03,6.2096]
[1721223315010,0.57978477,161.1,161.01,75.0]
[1721223315011,6.2081,161.08,161.02,6.2103]
[1721223315212,15.5167,161.12,161.02,1.24172323]
[1721223315213,0.57978477,161.07,161.02,1.24172323]
[1721223315412,0.57978477,161.11,161.03,1.24180815]
[1721223315711,55.0445,161.13,161.04,1.24167496]
[1721223315712,0.57978477,161.1,161.04,1.24167496]
[1721223315923,0.57978477,161.12,161.01,75.0]
[1721223316113,0.57978477,161.12,161.02,1.24180644]
[1721223316326,0.57978477,161.12,161.01,75.0]
[1721223316520,0.57978477,161.12,161.03,6.2096]
[1721223316731,6.2082,161.08,161.04,1.2416726]
[1721223316931,6.2077,161.09,161.05,1.24167506]
[1721223317124,0.57978477,161.12,161.04,6.2096]
[1721223317510,0.57978477,161.12,161.04,10.0]
[1721223317733,21.6845,161.13,161.05,46.24145929]
[1721223317916,0.57978477,161.12,161.07,6.2081]
[1721223318117,6.2077,161.09,161.06,30.0]
[1721223318423,6.2078,161.09,161.04,6.2095]
[1721223318626,6.2081,161.08,161.03,6.2099]
[1721223319016,0.57978477,161.12,161.04,81.2095]
[1721223319017,6.2075,161.1,161.04,81.2095]
[1721223319218,6.2069,161.11,161.05,1.24155254]
[1721223319426,0.57978477,161.12,161.07,6.2084]
[1721223319637,0.57978477,161.12,161.02,45.0]
[1721223319638,22.26428477,161.13,161.03,10.0]
[1721223319838,22.26428477,161.13,161.05,10.0]
[1721223320010,27.8906,161.13,161.08,6.208]
[1721223320213,21.6845,161.13,161.09,1.24136971]
[1721223320426,21.6845,161.13,161.09,7.44886971]